{"text_format":"1","workbook":"xlsx","n_sheets":10,"sheets":["Graph","Names","UserGuide","Nodes","Arcs","ODs","Paths","ColLet","PathMDs","Lists"],"not_rendered":{"charts":0,"images":0,"macros":1,"external_links":0,"defined_names":50,"comments":0,"pivot_tables":0},"unopened":[],"bounds":{"document_bytes":16777216,"sheet_cells":100000,"rows_first":2000,"rows_last":500,"rows_between":2000,"halvings":0,"cell_chars":16384,"cell_head_chars":4096},"cells_cut":1,"cells_raw":0,"read":"whole","date_system":"1900"}

{"sheet":"Graph","index":0,"n_rows":8,"n_cols":3,"rows_kept":8,"cut":false,"hidden":true,"merged":[]}
[]
[null,"Graph String","([0;1;2;3;4],[1-3;2-3;2-4;0-1;0-2;1-2],[])"]
[]
[null,"Urban Graph String",{"$cut":{"chars":32767,"head":"(([1;2;3;4;5;6;7;8;9;10;11;12;13;14;15;16;17;18;19;20;21;22;23;24;25;26;27;28;29;30;31;32;33;34;35;36;37;38;39;40;41;42;43;44;45;46;47;48;49;50;51;52;53;54;55;56;57;58;59;60;61;62;63;64;65;66;67;68;69;70;71;72;73;74;75;76;77;78;79;80;81;82;83;84;85;86;87;88;89;90;91;92;93;94;95;96;97;98;99;100;101;102;103;104;105;106;107;108;109;110;111;112;113;114;115;116;117;118;119;120;121;122;123;124;125;126;127;128;129;130;131;132;133;134;135;136;137;138;139;140;141;142;143;144;145;146;147;160;161;162;163;164;165;166;167;168;169;170;171;172;173;174;175;176;177;178;179;180;181;182;183;184;185;186;187;188;189;190;191;192;193;194;195;196;197;198;199;200;201;202;203;204;205;206;207;208;209;210;211;212;213;214;215;216;217;218;219;220;221;222;223;224;225;226;227;228;229;230;231;232;233;234;235;236;237;238;239;240;241;242;243;244;245;246;247;248;249;250;251;252;253;254;255;256;257;258;259;260;261;262;263;264;265;266;267;268;269;270;271;272;273;274;275;276;277;278;279;280;281;282;283;284;285;286;287;288;289;290;291;292;293;294;295;296;297;298;299;300;301;302;303;304;305;306;307;308;309;310;311;312;313;314;315;316;317;318;319;320;321;322;323;324;325;326;327;328;329;330;331;332;333;334;335;336;337;338;339;340;341;342;343;344;345;346;347;348;349;350;351;352;353;354;355;356;357;358;359;360;361;362;363;364;365;366;367;368;369;370;371;372;373;374;375;376;377;378;379;380;381;382;383;384;385;386;387;388;389;390;391;392;393;394;395;396;397;398;399;400;401;402;403;404;405;406;407;408;409;410;411;412;413;414;415;416;417;418;419;420;421;422;423;424;425;426;427;428;429;430;431;432;433;434;435;436;437;438;439;440;441;442;443;444;445;446;447;448;449;450;451;452;453;454;455;456;457;458;459;460;461;462;463;464;465;466;467;468;469;470;471;472;473;474;475;476;477;478;479;480;481;482;483;484;485;486;487;488;489;490;491;492;493;494;495;496;497;498;499;500;501;502;503;504;505;506;507;508;509;510;511;512;513;514;515;516;517;518;519;520;521;522;523;524;525;526;527;528;529;530;531;532;533;534;535;536;537;538;539;540;541;542;543;544;545;546;547;548;549;550;551;552;553;554;555;556;557;558;559;560;561;562;563;564;565;566;567;568;569;570;571;572;573;574;575;576;577;578;579;580;581;582;583;584;585;586;587;588;589;590;591;592;593;594;595;596;597;598;599;600;601;602;603;604;605;606;607;608;609;610;611;612;613;614;615;616;617;618;619;620;621;622;623;624;625;626;627;628;629;630;631;632;633;634;635;636;637;638;639;640;641;642;643;644;645;646;647;648;649;650;651;652;653;654;655;656;657;658;659;660;661;662;663;664;665;666;667;668;669;670;671;672;673;674;675;676;677;678;679;680;681;682;683;684;685;686;687;688;689;690;691;692;693;694;695;696;697;698;699;700;701;702;703;704;705;706;707;708;709;710;711;712;713;714;715;716;717;718;719;720;721;722;723;724;725;726;727;728;729;730;731;732;733;734;735;736;737;738;739;740;741;742;743;744;745;746;747;748;749;750;751;752;753;754;755;756;757;758;759;760;761;762;763;764;765;766;767;768;769;770;771;772;773;774;775;776;777;778;779;780;781;782;783;784;785;786;787;788;789;790;791;792;793;794;795;796;797;798;799;800;801;802;803;804;805;806;807;808;809;810;811;812;813;814;815;816;817;818;819;820;821;822;823;824;825;826;827;828;829;830;831;832;833;834;835;836;837;838;839;840;841;842;843;844;845;846;847;848;849;850;851;852;853;854;855;856;857;858;859;860;861;862;863;864;865;866;867;868;869;870;871;872;873;874;875;876;877;878;879;880;881;882;883;884;885;886;887;888;889;890;891;892;893;894;895;896;897;898;899;900;901;902;903;904;905;906;907;908;909;910;911;912;913;914;915;916;917;918;919;920;921;922;923;924;925;926;927;928;929;930;931;932;933;934;935;936;937;938;939;940;941;942;943;944;945;946;947;948;949;950;951;952;953;954;955;956;957;958;959;960;961;962;963;964;965;966;967;968;969;970;971;972;973;974;975;976;977;978;979;980;981;982;983;984;985;986;987;988;989;990;991;992;993;994;995;996;997;998;999;1000;1001;1002;1003;1004;1005;1006;1007;1008;1009;1010;1011;1012;1013;1014;1015;1016;1017;1018;1019;1020;1021;1022;1023;1024;1025;1026;1027;1028;1029;1030;1031;1032;1033;1034;1035;1036;1037;1038;1039;1040;1041;1042;1043;1044;1045;1046;1047;1048;1049;105"}}]
[]
[null,null,"([0;1;2;3;4],[1-3(5,4,5,5,1,10,5,6,3);2-3(3,2,10,6,3,8,4,10,7);2-4(9,10,9,1,2,9,7,2,2);0-1(9,5,7,7,6,5,8,10,3);0-2(6,8,2,5,4,8,5,6,5);1-2(3,2,2,7,7,10,2,1,6)],[0-1;0-1-3;0-1-2-3;0-2-4],[0-3(10,MDM(Add,0.001,[StaN;N(15,0.5)]));0-1(20,MDM(Add,0.001,[Exp(15,0.5)]));0-4(30)])"]
[]
[null,null,{"$f":"C6=uGraphString","v":false}]

{"sheet":"Names","index":1,"n_rows":27,"n_cols":24,"rows_kept":27,"cut":false,"hidden":true,"merged":[[22,17,26,17],[0,12,0,15],[2,17,6,17],[7,17,11,17],[12,17,16,17],[17,17,21,17]]}
[null,null,null,null,null,null,null,null,null,100,null,null,"clear formats"]
[null,null,null,"countif","ws","fCol","lCol","t","lbl","format Max",null,null,"ws","fCol","lCol","fRow"]
[null,null,"tArcs",{"$f":"MAX(COUNTIF(Arcs!A:A,\"><\"\"\"),2)","v":2},"Arcs","A","P",{"$f":"E3&\"!\"&F3&\"2:\"&G3&D3","v":"Arcs!A2:P2"},{"$f":"E3&\"!\"&F3&\"2:\"&F3&D3","v":"Arcs!A2:A2"},{"$f":"MAX(D3,$J$1)","v":100},null,null,{"$f":"E3","v":"Arcs"},1,12,{"$f":"J3+1","v":101},null,"label","0-1",{"$f":"E3&\"!\"&F3&\"2:\"&F3&J3","v":"Arcs!A2:A100"},null,"cm","Logit",{"$f":"E6&\"!E\"&\"2:E\"&J6","v":"Ods!E2:E100"}]
[null,null,"tNodes",{"$f":"MAX(COUNTIF(Nodes!A:A,\"><\"\"\")+COUNTIF(Nodes!A:A,\">-1000000\"),2)","v":2},"Nodes","A","A",{"$f":"E4&\"!\"&F4&\"2:\"&G4&D4","v":"Nodes!A2:A2"},{"$f":"E4&\"!\"&F4&\"2:\"&F4&D4","v":"Nodes!A2:A2"},{"$f":"MAX(D4,$J$1)","v":100},null,null,{"$f":"E4","v":"Nodes"},1,1,{"$f":"J4+1","v":101},null,null,"0-2",{"$f":"E4&\"!\"&F4&\"2:\"&F4&J4","v":"Nodes!A2:A100"},null,"dist","Exp",{"$f":"E7&\"!C\"&\"2:C\"&J7","v":"PathMDs!C2:C2"}]
[null,null,"tPaths",{"$f":"MAX(COUNTIF(Paths!A:A,\"><\"\"\"),2)","v":2},"Paths","A","DJ",{"$f":"E5&\"!\"&F5&\"2:\"&G5&D5","v":"Paths!A2:DJ2"},"Paths!A2:A2",100,null,null,"Paths",1,105,101,null,null,"0-3","Paths!A2:A100"]
[null,null,"tOds",{"$f":"MAX(COUNTIF(ODs!A:A,\"><\"\"\"),2)","v":2},"Ods","A","S",{"$f":"E6&\"!\"&F6&\"2:\"&G6&D6","v":"Ods!A2:S2"},{"$f":"E6&\"!\"&F6&\"2:\"&F6&D6","v":"Ods!A2:A2"},{"$f":"MAX(D6,$J$1)","v":100},null,null,"Ods",1,8,101,null,null,"0-4",{"$f":"E6&\"!\"&F6&\"2:\"&F6&J6","v":"Ods!A2:A100"}]
[null,null,"tPathMDs",{"$f":"MAX(COUNTIF(PathMDs!A:A,\"><\"\"\"),2)","v":2},"PathMDs","A","I",{"$f":"E7&\"!\"&F7&\"2:\"&G7&D7","v":"PathMDs!A2:I2"},{"$f":"E7&\"!\"&F7&\"2:\"&F7&D7","v":"PathMDs!A2:A2"},{"$f":"MAX(D7,2)","v":2},null,null,"PathMDs",1,6,3,null,null,"0-4",{"$f":"E7&\"!\"&F7&\"2:B\"&J7","v":"PathMDs!A2:B2"}]
[null,null,null,null,null,null,null,null,null,null,null,null,null,null,null,null,null,"left","0-1",{"$f":"E3&\"!B\"&\"2:C\"&J3","v":"Arcs!B2:C100"}]
[null,null,null,null,null,null,null,null,null,null,null,null,null,null,null,null,null,null,"0-2"]
[null,null,"qValidMDs",true,null,null,null,null,null,null,null,null,null,null,null,null,null,null,"0-3"]
[null,null,null,null,null,null,null,null,null,null,null,null,null,null,null,null,null,null,"0-4",{"$f":"E6&\"!B\"&\"2:C\"&J6","v":"Ods!B2:C100"}]
[null,null,null,null,null,null,null,null,null,null,null,null,null,null,null,null,null,null,"0-4"]
[null,null,null,null,null,null,null,null,null,null,null,null,null,null,null,null,null,"center","0-1"]
[null,null,null,null,null,null,null,null,null,null,null,null,null,null,null,null,null,null,"0-2"]
[null,null,null,null,null,null,null,null,null,null,null,null,null,null,null,null,null,null,"0-3",{"$f":"E5&\"!F\"&\"2:DA\"&J5","v":"Paths!F2:DA100"}]
[null,null,null,null,null,null,null,null,null,null,null,null,null,null,null,null,null,null,"0-4"]
[null,null,null,null,null,null,null,null,null,null,null,null,null,null,null,null,null,null,"0-4"]
[null,null,null,null,null,null,null,null,null,null,null,null,null,null,null,null,null,"right","0-1",{"$f":"E3&\"!E\"&\"2:M\"&J3","v":"Arcs!E2:M100"}]
[null,null,null,null,null,null,null,null,null,null,null,null,null,null,null,null,null,null,"0-2"]
[null,null,null,null,null,null,null,null,null,null,null,null,null,null,null,null,null,null,"0-3"]
[null,null,null,null,null,null,null,null,null,null,null,null,null,null,null,null,null,null,"0-4",{"$f":"E6&\"!D\"&\"2:H\"&J6","v":"Ods!D2:H100"}]
[null,null,null,null,null,null,null,null,null,null,null,null,null,null,null,null,null,null,"0-4",{"$f":"E7&\"!C\"&\"2:F\"&J7","v":"PathMDs!C2:F2"}]
[null,null,null,null,null,null,null,null,null,null,null,null,null,null,null,null,null,"calc1",15,{"$f":"E3&\"!D\"&\"2:D\"&J3","v":"Arcs!D2:D100"}]
[null,null,null,null,null,null,null,null,null,null,null,null,null,null,null,null,null,null,15.5]
[null,null,null,null,null,null,null,null,null,null,null,null,null,null,null,null,null,null,15,{"$f":"E5&\"!B\"&\"2:F\"&J5","v":"Paths!B2:F100"}]
[null,null,null,null,null,null,null,null,null,null,null,null,null,null,null,null,null,null,15]
[null,null,null,null,null,null,null,null,null,null,null,null,null,null,null,null,null,null,15.5]

{"sheet":"UserGuide","index":2,"n_rows":265,"n_cols":30,"rows_kept":265,"cut":false,"hidden":false,"merged":[[27,2,82,2],[84,2,169,2],[255,2,260,2],[262,2,267,2],[195,2,253,2],[188,2,193,2],[171,2,186,2],[1,2,25,2],[247,3,247,45],[256,3,256,45],[257,3,257,45],[263,3,263,45],[264,3,264,45],[13,3,13,45],[248,4,248,7],[248,8,248,11],[251,8,251,11],[250,8,250,11],[249,8,249,11],[251,4,251,7],[250,4,250,7],[249,4,249,7],[250,20,250,23],[251,16,251,19],[251,20,251,23],[248,12,248,15],[249,12,249,15],[250,12,250,15],[251,12,251,15],[243,8,243,45],[248,24,248,27],[251,24,251,27],[250,24,250,27],[249,24,249,27],[248,16,248,19],[248,20,248,23],[249,16,249,19],[249,20,249,23],[250,16,250,19],[242,3,242,7],[242,8,242,45],[230,8,230,45],[236,8,236,45],[232,8,232,45],[233,8,233,45],[236,3,236,7],[237,8,237,45],[238,8,238,45],[239,8,239,45],[225,3,225,45],[226,4,226,45],[227,4,227,45],[228,4,228,45],[229,3,229,45],[230,3,230,7],[231,8,231,45],[198,4,198,45],[199,4,199,45],[200,3,201,44],[200,45,201,45],[196,3,196,45],[197,3,197,45],[180,18,180,19],[180,20,180,21],[180,22,180,23],[180,24,180,25],[182,6,182,43],[183,7,183,43],[180,4,180,5],[179,9,179,11],[178,9,178,11],[178,16,178,17],[179,16,179,17],[180,16,180,17],[184,7,184,43],[185,7,185,43],[189,3,189,45],[190,3,190,45],[168,11,168,13],[167,11,167,13],[166,11,166,13],[179,4,179,5],[178,4,178,5],[178,6,178,8],[179,6,179,8],[180,6,180,8],[177,3,177,45],[178,12,178,13],[179,12,179,13],[180,12,180,13],[180,14,180,15],[179,14,179,15],[178,14,178,15],[178,18,178,19],[178,20,178,21],[178,22,178,23],[178,24,178,25],[179,18,179,19],[179,20,179,21],[179,22,179,23],[179,24,179,25],[180,9,180,11],[168,19,168,22],[167,19,167,22],[166,19,166,22],[163,4,163,46],[173,3,173,45],[174,3,174,45],[175,3,175,45],[168,6,168,7],[167,6,167,7],[166,6,166,7],[165,6,165,7],[164,6,164,7],[168,4,168,5],[167,4,167,5],[166,4,166,5],[165,4,165,5],[164,4,164,5],[164,11,164,13],[168,8,168,10],[167,8,167,10],[166,8,166,10],[165,8,165,10],[164,8,164,10],[168,14,168,18],[160,4,161,45],[172,3,172,45],[164,19,164,22],[164,23,164,26],[164,27,164,30],[165,27,165,30],[165,23,165,26],[155,5,155,6],[155,7,155,45],[157,7,157,45],[158,4,158,45],[159,4,159,45],[165,11,165,13],[164,14,164,18],[165,14,165,18],[166,14,166,18],[167,14,167,18],[167,23,167,26],[168,23,168,26],[168,27,168,30],[167,27,167,30],[166,27,166,30],[166,23,166,26],[165,19,165,22],[139,4,139,45],[150,3,150,45],[151,4,151,45],[152,4,152,45],[153,5,153,6],[153,7,153,45],[135,5,135,6],[135,7,135,45],[136,5,136,6],[136,7,136,45],[137,4,137,45],[138,4,138,45],[119,4,119,45],[118,4,118,45],[131,3,131,45],[132,4,132,45],[133,4,133,45],[134,5,134,6],[134,7,134,45],[114,5,114,6],[114,7,114,45],[115,5,115,6],[115,7,115,45],[116,4,116,45],[117,4,117,45],[112,4,112,45],[113,5,113,6],[113,7,113,45],[106,4,106,45],[107,4,107,45],[108,3,108,45],[109,4,109,45],[110,3,110,45],[111,4,111,45],[101,3,101,45],[102,3,102,45],[103,3,103,45],[104,4,104,45],[105,4,105,45],[97,7,97,43],[98,7,98,43],[99,7,99,43],[96,6,96,43],[94,3,94,45],[88,3,88,7],[88,8,88,45],[89,3,89,7],[89,8,89,45],[43,3,43,45],[87,3,87,45],[90,3,90,7],[90,8,90,45],[91,3,91,7],[91,8,91,45],[92,3,92,7],[92,8,92,45],[81,6,81,7],[80,6,80,7],[81,4,81,5],[80,4,80,5],[78,3,78,45],[85,3,85,45],[81,10,81,11],[80,10,80,11],[81,14,81,16],[86,3,86,45],[81,21,81,23],[80,21,80,23],[81,19,81,20],[80,19,80,20],[81,17,81,18],[80,17,80,18],[93,3,93,45],[42,3,42,45],[70,3,70,45],[80,29,80,31],[81,29,81,31],[80,26,80,28],[81,26,81,28],[81,24,81,25],[80,24,80,25],[57,4,57,45],[58,4,58,45],[67,3,67,45],[68,4,68,45],[69,4,69,45],[59,3,59,45],[80,14,80,16],[81,12,81,13],[80,12,80,13],[81,8,81,9],[80,8,80,9],[44,3,44,45],[45,3,45,45],[55,3,55,45],[56,4,56,45],[39,3,39,7],[40,3,40,7],[41,3,41,7],[36,3,36,7],[37,3,37,7],[38,3,38,7],[33,3,33,7],[33,8,33,45],[34,3,34,7],[35,3,35,7],[28,3,28,45],[29,3,29,45],[30,3,30,45],[31,3,31,7],[31,8,31,45],[32,3,32,7],[32,8,32,45],[19,3,19,45],[21,3,21,45],[22,3,22,45],[8,4,8,45],[9,3,9,45],[10,3,10,45],[12,3,12,45],[14,3,14,45],[15,4,15,45],[2,3,2,45],[3,4,3,45],[4,4,4,45],[5,4,5,45],[6,3,6,45],[7,4,7,45],[16,4,16,45],[17,4,17,45],[18,4,18,45]]}
[]
[]
[null,null,null,"This workbook can be used to generate a custom seSue data file that contains the following information:"]
[null,null,null,"l","network topology (nodes and links),"]
[null,null,null,"l","BPR link cost function parameters, and"]
[null,null,null,"l","origin-destination (O-D) pairs and corresponding demands,"]
[null,null,null,"Optionally the following inputs can also be entered:"]
[null,null,null,"l","paths, and"]
[null,null,null,"l","discrete route choice models of the O-D pairs."]
[null,null,null,"Path generation algorithms provided in seSue can be used the route choice sets. However, if you want to test a working route choice set, the paths need to be entered here."]
[null,null,null,"Route choice models can be entered either here or using seSue."]
[]
[null,null,null,"In general, the cells to enter data are the ones with white background color."]
[null,null,null,"The data can be entered as values or Excel functions can be used to calculate them."]
[null,null,null,"Label cells that have blue background color need not be filled since they will be generated automatically as follows:"]
[null,null,null,"l","node labels will be obtained from the 'From' and 'To' columns of the 'Arcs' sheet,"]
[null,null,null,"l","arc label is simply From-To (e.g., the label of an arc from A to B will be generated as A-B),"]
[null,null,null,"l","O-D label is simply Origin-Destination (e.g., the label of an O-D pair with origin A and destination B will be generated as A-B),"]
[null,null,null,"l","path label is the sequence of the node labels separated with dashes (e.g., the label of a path visiting nodes A, B, and C sequentially is A-B-C)."]
[null,null,null,"Calculated cells that have yellow background color need not be filled since they will be calculated automatically."]
[]
[null,null,null,"The steps to create a seSue file are described below."]
[null,null,null,"You can clear all the inputs entered in this workbook by clicking the button below:"]
[]
[]
[]
[]
[]
[null,null,null,"STEP 1. Entering the links"]
[null,null,null,"Links of the network are entered in the Arcs sheet."]
[null,null,null,"Each link is defined by From and To fields (these should be unique), and has nine additional fields:"]
[null,null,null,"From:",null,null,null,null,"Label of the start node of the link."]
[null,null,null,"To:",null,null,null,null,"Label of the end node of the link."]
[null,null,null,"FFTT:",null,null,null,null,"Free-flow travel time (numeric)."]
[null,null,null,"B:",null,null,null,null,"See the explanations below (numeric)."]
[null,null,null,"Capacity:",null,null,null,null,"See the explanations below (numeric)."]
[null,null,null,"Power:",null,null,null,null,"See the explanations below (numeric)."]
[null,null,null,"Toll:",null,null,null,null,"See the explanations below (numeric)."]
[null,null,null,"Toll Fac.:",null,null,null,null,"See the explanations below (numeric)."]
[null,null,null,"Length:",null,null,null,null,"See the explanations below (numeric)."]
[null,null,null,"Dist. Fac.:",null,null,null,null,"See the explanations below (numeric)."]
[null,null,null,"Exp. Coeff.:",null,null,null,null,"See the explanations below (numeric)."]
[null,null,null,"Node labels entered in 'From' and 'To' fields can be numeric or text."]
[null,null,null,"All fields are required to define a link."]
[null,null,null,"seSue uses the BPR (Bureau of Public Roads) function to measure the generalized link cost."]
[null,null,null,"Cost of a link as a function of the link flow is calculated as follows:"]
[]
[]
[]
[]
[]
[]
[]
[]
[]
[null,null,null,"This cost function is used with discrete route choice models using an additive route travel cost (i.e., cost of a path is the sum of the costs of its links), which are:"]
[null,null,null,"l","deterministic user equilibrium,"]
[null,null,null,"l","logit models, and"]
[null,null,null,"l","MDM model with additive utility function."]
[null,null,null,"The additive cost of route k is then calculated as follows:"]
[]
[]
[]
[]
[]
[]
[]
[null,null,null,"The Exp. Coeff. parameter is used for the discrete route choice models using a multiplicative route travel cost (i.e., cost of a path is the product of the costs of its links), which are:"]
[null,null,null,"l","weibit models, and"]
[null,null,null,"l","MDM model with multiplicative utility function."]
[null,null,null,"The additive cost of route k is then calculated as follows:"]
[]
[]
[]
[]
[]
[]
[]
[null,null,null,"A sample link entry is given below."]
[]
[null,null,null,null,"Label",null,"From",null,"To",null,"FFTT",null,"B",null,"Capacity",null,null,"Power",null,"Toll",null,"Toll Fac.",null,null,"Length",null,"Dist. Fac.",null,null,"Exp. Coeff."]
[null,null,null,null,null,null,1,null,3,null,1E-8,null,1000000000,null,1,null,null,1,null,0,null,0,null,null,100,null,0,null,null,7.4999999999999997E-2]
[]
[]
[]
[null,null,null,"STEP 2. Entering the O-D pairs"]
[null,null,null,"O-D pairs with positive demand are entered in the ODs sheet."]
[null,null,null,"Each O-D pair is defined by Origin and Destination (these should be unique), and has five additional fieldsç"]
[null,null,null,"Origin:",null,null,null,null,"Label of the origin node."]
[null,null,null,"Destination:",null,null,null,null,"Label of the destination node."]
[null,null,null,"Demand:",null,null,null,null,"The demand (flow) from origin to the destionation (numeric)."]
[null,null,null,"Choice Model:",null,null,null,null,"Route choice model of the users in the O-D pair."]
[null,null,null,"CM Param 1-2-3:",null,null,null,null,"Parameters of the route choice model. See the explanations below."]
[null,null,null,"The required fields to enter an O-D pair are the Origin, the Destination and the Demand."]
[null,null,null,"Choice Model and CM parameters are optional and can be left blank (to be assigned later using seSue)."]
[]
[null,null,null,null,null,null,"Integrity Check:"]
[null,null,null,null,null,null,"Ü","Labels of the origin and destination of an O-D pair entered in the ODs sheet needs to exist in the From and To columns of the Arcs sheet."]
[null,null,null,null,null,null,null,"In other words, the nodes designated as the origin and destination should exist in the network topology created in the Arcs sheet."]
[null,null,null,null,null,null,null,"Otherwise, you will get a warning message."]
[]
[null,null,null,"If you want to enter the route choice models of the O-D pairs in this workbook, you can follow the instructions below."]
[null,null,null,"Note that the assigned route choice models can later be changed using seSue."]
[null,null,null,"seSue currently provides four major classes of traffic assignment methods:"]
[null,null,null,"l","deterministic user equilibrium (DUE),"]
[null,null,null,"l","logit-based route choice models,"]
[null,null,null,"l","weibit-based route choice models, and"]
[null,null,null,"l","MDM-based route choice models."]
[null,null,null,"Assigning DUE:"]
[null,null,null,null,"Type DUE in the Choice Model field and leave CM Param fields empty."]
[null,null,null,"Assigning a logit based route choice model:"]
[null,null,null,null,"Type Logit in the Choice Model field."]
[null,null,null,null,"CM Param1 corresponds to the deterministic correction term (see the formulation below). Enter 1, CF or PS in this field:"]
[null,null,null,null,null,1,null,"Correction terms for all paths will be one (i.e., there will be no correction for the overlapping routes)."]
[null,null,null,null,null,"CF",null,"Correction term of a path will be equal to the Commonality Factor of that path (Cascetta et al. (1996))."]
[null,null,null,null,null,"PS",null,"Correction term of a path will be equal to the Path Size of that path (Ben-Akiva and Bierlaire (1999))."]
[null,null,null,null,"Enter the dispersion parameter (theta) into the field CM Param2."]
[null,null,null,null,"Leave CM Param3 empty."]
[null,null,null,null,"Note that the correction terms are used to model the effect of overlapping routes."]
[null,null,null,null,"Logit-based route choice probabilities will be calculated as follows:"]
[]
[]
[]
[]
[]
[]
[]
[]
[]
[]
[]
[null,null,null,"Assigning a weibit based route choice model:"]
[null,null,null,null,"Type Weibit in the Choice Model field."]
[null,null,null,null,"CM Param1 corresponds to the deterministic correction term (see the formulation below). Enter 1, CF or PS in this field:"]
[null,null,null,null,null,1,null,"Correction terms for all paths will be one (i.e., there will be no correction for the overlapping routes)."]
[null,null,null,null,null,"CF",null,"Correction term of a path will be equal to the Commonality Factor of that path (Cascetta et al. (1996))."]
[null,null,null,null,null,"PS",null,"Correction term of a path will be equal to the Path Size of that path (Ben-Akiva and Bierlaire (1999))."]
[null,null,null,null,"Enter the location parameter of the underlying Weibull distribution (xi) into the field CM Param2."]
[null,null,null,null,"Enter the shape parameter of the underlying Weibull distribution (beta) into the field CM Param2."]
[null,null,null,null,"Weibit-based route choice probabilities will be calculated as follows:"]
[]
[]
[]
[]
[]
[]
[]
[]
[]
[]
[null,null,null,"Assigning an MDM based route choice model:"]
[null,null,null,null,"Type MDM in the Choice Model field."]
[null,null,null,null,"CM Param1 corresponds to the type of the utility function. Type Add or Mul in this field:"]
[null,null,null,null,null,"Add",null,"Additive utility (U) is the summation of the deterministic (systematic) component and the random perception error term (as in logit-based models):"]
[]
[null,null,null,null,null,"Mul",null,"Multiplicative disutility (U) is the product of the deterministic (systematic) component and the random perception error term (as in weibit-based models):"]
[]
[null,null,null,null,null,null,null,"where xi and beta are parameters."]
[null,null,null,null,"CM Param2 corresponds to a MDM solution algorithm parameter which is used for precision in the bisection search. Enter a sufficiently small number (i.e., 0.0001)."]
[null,null,null,null,"Leave CM Param3 empty."]
[null,null,null,null,"In MDM-based stochastic user equilibrium models, marginal distributions of the perception error terms of individual routes are inputs of the model. Therefore, if the route choice model of an O-D pair is set as MDM and the routes of connecting the origin to destination are provided, you will be asked to enter these marginal distributions."]
[]
[]
[null,null,null,null,"Four sample O-D pair entries with different choice models are given below."]
[null,null,null,null,"Label",null,"Origin",null,"Destination",null,null,"Demand",null,null,"Choice Model (CM)",null,null,null,null,"CM Param1",null,null,null,"CM Param2",null,null,null,"CM Param3"]
[null,null,null,null,null,null,1,null,2,null,null,6,null,null,"DUE"]
[null,null,null,null,null,null,1,null,3,null,null,10,null,null,"Logit",null,null,null,null,1,null,null,null,0.1]
[null,null,null,null,null,null,1,null,6,null,null,9,null,null,"Weibit",null,null,null,null,"PS",null,null,null,0,null,null,null,3.7]
[null,null,null,null,null,null,2,null,1,null,null,15,null,null,"MDM",null,null,null,null,"Add",null,null,null,1E-4]
[]
[]
[]
[null,null,null,"STEP 3. Entering the paths (optional)"]
[null,null,null,"This step can be skipped and the route choice sets can be generated using the several path generation algorithms provided in seSue."]
[null,null,null,"On the other hand, paths may be entered explicitly in the Paths sheet if working route choice sets are available."]
[null,null,null,"In order to enter a path visiting nodes n1, n2, …, nK sequentially, enter the labels of these nodes in the columns starting with 1 (column G)."]
[]
[null,null,null,"Two sample paths entries that visit nodes 1-2-3-5 and 1-3-4 are given below:"]
[null,null,null,null,"Label",null,"FFTT",null,null,"Length",null,null,"PS",null,"CF",null,1,null,2,null,3,null,4,null,5]
[null,null,null,null,null,null,null,null,null,null,null,null,null,null,null,null,1,null,2,null,3,null,5]
[null,null,null,null,null,null,null,null,null,null,null,null,null,null,null,null,1,null,3,null,4]
[]
[null,null,null,null,null,null,"Integrity Check:"]
[null,null,null,null,null,null,"Ü","Every arc used in the paths needs to exist in the Arcs sheet."]
[null,null,null,null,null,null,null,"For instance, in order to enter the two paths above, arcs 1-2, 2-3, 3-5, 1-3, and 3-4 need to exist in the Arcs sheet."]
[null,null,null,null,null,null,null,"Otherwise, you will get a warning message."]
[]
[]
[]
[null,null,null,"þ FIRST CHECK"]
[null,null,null,"Once the first three steps are completed, press the button below to check the validity of the entries."]
[]
[]
[]
[]
[]
[null,null,null,"STEP 4. Entering the marginal distributions of the route perception errors (optional)"]
[null,null,null,"This step is only required if:"]
[null,null,null,"l","the route choice model of at least one O-D pair is defined as MDM, and"]
[null,null,null,"l","the paths of the corresponding O-D pair(s) are entered in Step 3."]
[null,null,null,"When FIRST CHECK button is clicked, paths of the O-D pairs with choice model MDM are copied in PathsMDs sheet. At this step, the marginal distributions of the perception errors of these routes need to be entered. MDM route choice probabilities are calculated as follows:"]
[]
[]
[]
[]
[]
[]
[]
[]
[]
[]
[]
[]
[]
[]
[]
[]
[]
[]
[]
[]
[]
[]
[]
[]
[null,null,null,"Currently, the following distributions are available in seSue:"]
[null,null,null,"l","exponential distribution,"]
[null,null,null,"l","normal distribution, and"]
[null,null,null,"l","standard normal distribution."]
[null,null,null,"The columns DistParam1, DistParam2, and DistParam3 correspond to the parameters of the distributions:"]
[null,null,null,"Exponential:",null,null,null,null,"Type Exp in Distribution column (column C)."]
[null,null,null,null,null,null,null,null,"DistParam1 is the location parameter (A)."]
[null,null,null,null,null,null,null,null,"DistParam2 is the location parameter (B)."]
[null,null,null,null,null,null,null,null,"Leave DistParam3 empty."]
[]
[]
[null,null,null,"Normal:",null,null,null,null,"Type N in Distribution column (column C)."]
[null,null,null,null,null,null,null,null,"DistParam1 is the mean (mu)."]
[null,null,null,null,null,null,null,null,"DistParam2 is the standard deviation (sigma)."]
[null,null,null,null,null,null,null,null,"Leave DistParam3 empty."]
[]
[]
[null,null,null,"Standard Normal:",null,null,null,null,"Type StaN in Distribution column (column C)."]
[null,null,null,null,null,null,null,null,"Leave DistParam1, DistParam2, and DistParam3 empty."]
[]
[]
[]
[null,null,null,"Sample marginal distribution entries for three paths 1-3-2,  1-3-4-2, and 1-4-2 for O-D pair 1-2 are given below:"]
[null,null,null,null,"Label",null,null,null,"OD",null,null,null,"Distribution",null,null,null,"Dist Param1",null,null,null,"Dist Param2",null,null,null,"Dist Param3"]
[null,null,null,null,"1-3-2",null,null,null,"1-2",null,null,null,"Exp",null,null,null,10.5,null,null,null,1]
[null,null,null,null,"1-3-4-2",null,null,null,"1-2",null,null,null,"N",null,null,null,5,null,null,null,1.5]
[null,null,null,null,"1-4-2",null,null,null,"1-2",null,null,null,"StaN"]
[]
[]
[]
[]
[null,null,null,"þ SECOND CHECK"]
[null,null,null,"Once Step 4 is completed, press the button below to check the validity of the marginal distributions."]
[]
[]
[]
[]
[]
[null,null,null,"þ FINALIZATION"]
[null,null,null,"If the first and second checks are valid, you can generate the seSue model file by clicking the button below. The process may require time depending on the size of the network."]

{"sheet":"Nodes","index":3,"n_rows":1,"n_cols":1,"rows_kept":1,"cut":false,"hidden":false,"merged":[]}
["Label"]

{"sheet":"Arcs","index":4,"n_rows":1,"n_cols":16,"rows_kept":1,"cut":false,"hidden":false,"merged":[]}
["Label","From","To","Flow","FFTT","B","Capacity","Power","Toll","Toll Fac.","Length","Dist. Fac.","Exp. Coeff.","valid","path ind","max flow"]

{"sheet":"ODs","index":5,"n_rows":1,"n_cols":19,"rows_kept":1,"cut":false,"hidden":false,"merged":[]}
["Label","Origin","Destination","Demand","Choice Model (CM)","CM Param1","CM Param2","CM Param3","O ind","D ind","cm status","path ind","sp ind","sp fftt","pathMd ind","minC+","maxC+","minC*","maxC*"]

{"sheet":"Paths","index":6,"n_rows":1,"n_cols":114,"rows_kept":1,"cut":false,"hidden":false,"merged":[]}
["Label","FFTT","Length","PS","CF","Prob",1,2,3,4,5,6,7,8,9,10,11,12,13,14,15,16,17,18,19,20,21,22,23,24,25,26,27,28,29,30,31,32,33,34,35,36,37,38,39,40,41,42,43,44,45,46,47,48,49,50,51,52,53,54,55,56,57,58,59,60,61,62,63,64,65,66,67,68,69,70,71,72,73,74,75,76,77,78,79,80,81,82,83,84,85,86,87,88,89,90,91,92,93,94,95,96,97,98,99,100,"valid","last col","od row","arc indices","minC+","maxC+","minC*","maxC*"]

{"sheet":"ColLet","index":7,"n_rows":1,"n_cols":100,"rows_kept":1,"cut":false,"hidden":true,"merged":[]}
["A","B","C","D","E","F","G","H","I","J","K","L","M","N","O","P","Q","R","S","T","U","V","W","X","Y","Z","AA","AB","AC","AD","AE","AF","AG","AH","AI","AJ","AK","AL","AM","AN","AO","AP","AQ","AR","AS","AT","AU","AV","AW","AX","AY","AZ","BA","BB","BC","BD","BE","BF","BG","BH","BI","BJ","BK","BL","BM","BN","BO","BP","BQ","BR","BS","BT","BU","BV","BW","BX","BY","BZ","CA","CB","CC","CD","CE","CF","CG","CH","CI","CJ","CK","CL","CM","CN","CO","CP","CQ","CR","CS","CT","CU","CV"]

{"sheet":"PathMDs","index":8,"n_rows":1,"n_cols":9,"rows_kept":1,"cut":false,"hidden":false,"merged":[]}
["Label","OD","Distribution","Dist Param1","Dist Param2","Dist Param3","path ind","od ind","valid dist"]

{"sheet":"Lists","index":9,"n_rows":6,"n_cols":4,"rows_kept":6,"cut":false,"hidden":true,"merged":[]}
[]
[null,"lstCM",null,"lstDist"]
[null,"DUE",null,"Exp"]
[null,"Logit",null,"N"]
[null,"Weibit",null,"StaN"]
[null,"MDM"]